[Event "GER-ch Youth U10 2020"]
[Site "Willingen"]
[Date "2020.10.30"]
[Round "5.25"]
[White "Wolff, Calvin"]
[Black "Blumenthal Tuset, Sebastian"]
[Result "1-0"]
[ECO "B01"]
[WhiteElo "1219"]
[BlackElo "1453"]
[Annotator "NA RC"]
[PlyCount "99"]
[EventDate "2020.10.27"]
[EventType "swiss"]
[EventRounds "7"]
[EventCountry "GER"]
[SourceTitle "playchess.com"]
[Source "ChessBase"]
[SourceQuality "1"]
[TimeControl "40/4500+30:900+30"]

1. e4 {[%emt 0:00:00]} d5 {[%emt 0:00:00]} 2. exd5 {[%emt 0:00:30]} Qxd5 {[%emt 0:02:32]} 3. Nc3 {[%emt 0:00:35]} Qd6 {[%emt 0:00:07]} 4. d4 {[%emt 0:00:51]} Nf6 {[%emt 0:00:26]} 5. Bc4 {[%emt 0:00:53]} Bg4 {[%emt 0:00:26]} 6. f3 {[%emt 0:02:04]} Bh5 7. Nge2 e6 {[%emt 0:02:30]} 8. Bf4 {[%emt 0:00:41]} Qd8 {[%emt 0:00:27]} 9. O-O {[%emt 0:00:53]} c6 {[%emt 0:00:12]} 10. Re1 {[%emt 0:01:12]} Be7 {[%emt 0:00:38]} 11. Ng3 {[%emt 0:00:55]} Bg6 {[%emt 0:00:31]} 12. Qd2 {[%emt 0:01:15]} O-O {[%emt 0:02:42]} 13. Rad1 {[%emt 0:01:24]} Nbd7 {[%emt 0:01:09]} 14. Qe2 {[%emt 0:01:14]} Bb4 {[%emt 0:03:06]} 15. Bd2 {[%emt 0:02:21]} Bxc2 {[%emt 0:00:58]} 16. Rc1 {[%emt 0:00:08]} Bg6 {[%emt 0:01:57]} 17. a3 {[%emt 0:00:43]} Bxc3 {[%emt 0:01:11]} 18. Bxc3 {[%emt 0:00:41]} Re8 {[%emt 0:01:22]} 19. Ne4 {[%emt 0:00:46]} Nxe4 {[%emt 0:06:04]} 20. fxe4 {[%emt 0:00:13]} Nf6 {[%emt 0:03:59]} 21. Bd3 {[%emt 0:01:27]} Qc7 {[%emt 0:04:11]} 22. e5 {[%emt 0:04:40]} Bxd3 {[%emt 0:00:58]} 23. Qxd3 {[%emt 0:00:15]} Nd5 {[%emt 0:00:21]} 24. Bd2 {[%emt 0:02:41]} Qb6 {[%emt 0:02:49]} 25. Rf1 {[%emt 0:01:37]} Kf8 {[%emt 0:09:08]} 26. Kh1 {[%emt 0:10:40]} Ke7 {[%emt 0:01:39]} 27. Bg5+ {[%emt 0:00:47]} f6 {[%emt 0:03:02]} 28. exf6+ {[%emt 0:00:29]} Nxf6 {[%emt 0:00:56]} 29. Bxf6+ {[%emt 0:00:42]} gxf6 {[%emt 0:00:17]} 30. Qxh7+ {[%emt 0:00:09]} Kd6 {[%emt 0:00:26]} 31. Qc2 {[%emt 0:01:19]} f5 {[%emt 0:00:57]} 32. Qe2 {[%emt 0:00:16]} Qb5 {[%emt 0:01:05]} 33. Qe3 {[%emt 0:00:32]} Qd5 {[%emt 0:03:48]} 34. Qg3+ {[%emt 0:02:01]} Kd7 {[%emt 0:00:54]} 35. Rf4 {[%emt 0:00:47]} Rg8 {[%emt 0:00:56]} 36. Qf2 {[%emt 0:00:35]} Rg7 {[%emt 0:02:26]} 37. Rc3 {[%emt 0:02:01]} Qa2 {[%emt 0:03:42]} 38. Qe1 {[%emt 0:04:04]} Qxb2 {[%emt 0:01:41]} 39. Rf2 {[%emt 0:00:38]} Qb5 {[%emt 0:01:16]} 40. Rff3 {[%emt 0:01:01]} Rh8 {[%emt 0:01:39]} 41. Rb3 {[%emt 0:15:47]} Qa6 {[%emt 0:16:37]} 42. Qb1 {[%emt 0:01:45]} Kd6 {[%emt 0:01:03]} 43. Qe1 {[%emt 0:01:32]} Kd7 {[%emt 0:01:41]} 44. Qa1 {[%emt 0:00:39]} Rhg8 {[%emt 0:02:29]} 45. Rf2 {[%emt 0:01:23]} b6 {[%emt 0:00:48]} 46. Qc1 {[%emt 0:00:31]} Qb7 {[%emt 0:00:53]} 47. Rbb2 {[%emt 0:00:40]} Qa6 {[%emt 0:01:55]} 48. Rbc2 {[%emt 0:01:14]} Qa4 {[%emt 0:01:24]} 49. Rc4 {[%emt 0:01:16]} Rc8 {[%emt 0:01:10]} 50. Rxa4 {[%emt 0:00:42]} 1-0

[Event "GER-ch Youth U10 2020"]
[Site "Willingen"]
[Date "2020.10.30"]
[Round "5.26"]
[White "Goldkuhle, Collin"]
[Black "Kutz, Paul Matti"]
[Result "1-0"]
[ECO "C78"]
[WhiteElo "1418"]
[BlackElo "1242"]
[Annotator "NA RC"]
[PlyCount "125"]
[EventDate "2020.10.27"]
[EventType "swiss"]
[EventRounds "7"]
[EventCountry "GER"]
[SourceTitle "playchess.com"]
[Source "ChessBase"]
[SourceQuality "1"]
[TimeControl "40/4500+30:900+30"]

1. e4 {[%emt 0:00:00]} e5 {[%emt 0:00:58]} 2. Nf3 {[%emt 0:00:00]} Nc6 {[%emt 0:01:21]} 3. Bb5 {[%emt 0:00:06]} a6 {[%emt 0:02:44]} 4. Ba4 {[%emt 0:00:22]} b5 {[%emt 0:01:33]} 5. Bb3 {[%emt 0:01:09]} Bb7 {[%emt 0:03:47]} 6. O-O {[%emt 0:00:36]} Nf6 {[%emt 0:00:50]} 7. d4 {[%emt 0:00:25]} Nxe4 {[%emt 0:01:36]} 8. Re1 {[%emt 0:02:37]} Na5 {[%emt 0:00:43]} 9. Nxe5 {[%emt 0:00:39]} Nxb3 {[%emt 0:00:48]} 10. axb3 {[%emt 0:00:08]} Qh4 {[%emt 0:03:58]} 11. f3 {[%emt 0:01:50]} Qf2+ {[%emt 0:01:44]} 12. Kh1 {[%emt 0:00:53]} Nf6 {[%emt 0:13:28]} 13. Ng4+ {[%emt 0:00:16]} Qxe1+ {[%emt 0:00:54]} 14. Qxe1+ {[%emt 0:00:28]} Be7 {[%emt 0:00:57]} 15. Nxf6+ {[%emt 0:02:04]} gxf6 16. Bf4 {[%emt 0:00:45]} O-O-O {[%emt 0:00:35]} 17. Qxe7 {[%emt 0:00:17]} Rhe8 {[%emt 0:00:26]} 18. Qb4 {[%emt 0:01:20]} Rg8 {[%emt 0:00:34]} 19. Nd2 {[%emt 0:00:38]} Rde8 {[%emt 0:00:30]} 20. Qc5 {[%emt 0:01:28]} Bc6 {[%emt 0:01:23]} 21. d5 {[%emt 0:00:41]} d6 {[%emt 0:16:14]} 22. Qxc6 {[%emt 0:00:30]} Kd8 {[%emt 0:00:42]} 23. Qa8+ {[%emt 0:00:43]} Ke7 {[%emt 0:00:52]} 24. Re1+ {[%emt 0:00:15]} Kd7 {[%emt 0:00:11]} 25. Rxe8 {[%emt 0:00:07]} Rxe8 {[%emt 0:00:07]} 26. Qc6+ {[%emt 0:00:16]} Kd8 {[%emt 0:00:18]} 27. Ne4 {[%emt 0:00:07]} f5 {[%emt 0:00:13]} 28. Qa8+ {[%emt 0:00:18]} Ke7 {[%emt 0:00:21]} 29. Bg5+ {[%emt 0:00:09]} Kf8 {[%emt 0:00:14]} 30. Qxe8+ {[%emt 0:00:38]} Kxe8 {[%emt 0:00:10]} 31. Nf6+ {[%emt 0:00:04]} Kf8 {[%emt 0:00:29]} 32. Nxh7+ {[%emt 0:00:06]} Kg7 {[%emt 0:00:03]} 33. Nf6 {[%emt 0:00:48]} Kg6 {[%emt 0:00:03]} 34. h4 {[%emt 0:00:16]} f4 {[%emt 0:01:54]} 35. Ne8 {[%emt 0:00:27]} f5 {[%emt 0:00:15]} 36. Nxc7 {[%emt 0:00:09]} Kh7 {[%emt 0:01:19]} 37. c4 {[%emt 0:00:18]} bxc4 {[%emt 0:00:31]} 38. bxc4 {[%emt 0:00:06]} a5 {[%emt 0:00:23]} 39. c5 {[%emt 0:00:06]} a4 {[%emt 0:00:05]} 40. cxd6 {[%emt 0:00:06]} a3 {[%emt 0:00:39]} 41. bxa3 {[%emt 0:15:07]} Kg6 {[%emt 0:15:50]} 42. d7 {[%emt 0:00:09]} Kh5 {[%emt 0:00:17]} 43. Bh6 {[%emt 0:00:15]} Kg6 {[%emt 0:00:15]} 44. d8=R Kh7 45. Rd7+ {[%emt 0:01:40]} Kg6 {[%emt 0:00:44]} 46. h5+ {[%emt 0:00:09]} Kxh6 {[%emt 0:01:02]} 47. Ne6 {[%emt 0:00:12]} Kxh5 {[%emt 0:00:14]} 48. Nxf4+ {[%emt 0:00:12]} Kg5 {[%emt 0:00:11]} 49. a4 {[%emt 0:00:17]} Kxf4 {[%emt 0:00:27]} 50. a5 {[%emt 0:00:06]} Kg3 {[%emt 0:00:15]} 51. a6 {[%emt 0:00:08]} f4 {[%emt 0:00:08]} 52. Rg7+ {[%emt 0:00:12]} Kf2 {[%emt 0:00:08]} 53. a7 {[%emt 0:00:18]} Kf1 {[%emt 0:00:11]} 54. a8=Q Kf2 55. Qa2+ {[%emt 0:01:04]} Ke3 {[%emt 0:00:40]} 56. Re7+ {[%emt 0:00:09]} Kd4 {[%emt 0:00:31]} 57. Qd2+ {[%emt 0:00:15]} Kc5 58. Rc7+ {[%emt 0:00:14]} Kd6 {[%emt 0:00:23]} 59. Qxf4+ {[%emt 0:00:15]} Kxd5 {[%emt 0:00:28]} 60. Qe4+ {[%emt 0:00:41]} Kd6 {[%emt 0:00:13]} 61. Rc6+ {[%emt 0:00:03]} Kd7 {[%emt 0:00:25]} 62. Qe6+ {[%emt 0:00:21]} Kd8 {[%emt 0:00:15]} 63. Rc8# {[%emt 0:00:02]} 1-0

[Event "GER-ch Youth U10 2020"]
[Site "Willingen"]
[Date "2020.10.30"]
[Round "5.27"]
[White "Gulamzada, Elmir"]
[Black "Mündörfer, Sebastian"]
[Result "0-1"]
[ECO "B38"]
[WhiteElo "1397"]
[BlackElo "1175"]
[Annotator "NA RC"]
[PlyCount "71"]
[EventDate "2020.10.27"]
[EventType "swiss"]
[EventRounds "7"]
[EventCountry "GER"]
[SourceTitle "playchess.com"]
[Source "ChessBase"]
[SourceQuality "1"]
[TimeControl "40/4500+30:900+30"]

1. e4 {[%emt 0:00:00]} c5 {[%emt 0:00:00]} 2. Nf3 {[%emt 0:00:00]} g6 {[%emt 0:00:00]} 3. d4 {[%emt 0:00:00]} cxd4 {[%emt 0:00:00]} 4. Nxd4 {[%emt 0:00:04]} Bg7 {[%emt 0:00:20]} 5. c4 {[%emt 0:00:24]} Nc6 {[%emt 0:00:30]} 6. Be3 {[%emt 0:00:51]} d6 {[%emt 0:00:15]} 7. Nc3 {[%emt 0:00:21]} Nf6 {[%emt 0:00:11]} 8. f3 {[%emt 0:00:25]} O-O {[%emt 0:00:09]} 9. Qd2 {[%emt 0:00:47]} Qc7 {[%emt 0:01:30]} 10. Be2 {[%emt 0:01:41]} a6 {[%emt 0:02:22]} 11. O-O {[%emt 0:01:23]} Nxd4 {[%emt 0:04:30]} 12. Bxd4 {[%emt 0:00:18]} Be6 {[%emt 0:01:07]} 13. b3 Rfc8 {[%emt 0:00:44]} 14. Rad1 {[%emt 0:07:33]} Qa5 {[%emt 0:05:23]} 15. Rc1 {[%emt 0:07:44]} Rc7 16. Qe3 {[%emt 0:04:32]} Nd7 {[%emt 0:01:25]} 17. Bxg7 {[%emt 0:01:39]} Kxg7 {[%emt 0:00:01]} 18. Qd4+ {[%emt 0:11:32]} Kg8 {[%emt 0:02:01]} 19. Rc2 Qc5 20. Qxc5 {[%emt 0:02:27]} Rxc5 {[%emt 0:00:59]} 21. Nd5 {[%emt 0:01:24]} Bxd5 {[%emt 0:00:07]} 22. exd5 {[%emt 0:00:09]} b5 {[%emt 0:00:46]} 23. Re1 {[%emt 0:03:35]} Kf8 {[%emt 0:00:13]} 24. Bd3 {[%emt 0:00:29]} bxc4 {[%emt 0:00:12]} 25. bxc4 {[%emt 0:03:17]} Ra7 {[%emt 0:02:15]} 26. Kf2 {[%emt 0:02:45]} Rb7 {[%emt 0:01:26]} 27. Ree2 {[%emt 0:06:44]} Rc8 {[%emt 0:03:03]} 28. Rb2 {[%emt 0:01:46]} Rcb8 {[%emt 0:03:34]} 29. Rxb7 {[%emt 0:04:55]} Rxb7 {[%emt 0:00:05]} 30. Ke3 {[%emt 0:04:36]} Rb4 {[%emt 0:04:15]} 31. Kd4 {[%emt 0:04:50]} Nc5 {[%emt 0:01:32]} 32. Kc3 {[%emt 0:01:13]} Ra4 {[%emt 0:00:14]} 33. Rd2 {[%emt 0:02:17]} Ra3+ {[%emt 0:00:40]} 34. Kc2 {[%emt 0:02:27]} Rxa2+ {[%emt 0:00:44]} 35. Kc3 {[%emt 0:00:21]} Na4+ {[%emt 0:00:30]} 36. Kd4 0-1

[Event "GER-ch Youth U10 2020"]
[Site "Willingen"]
[Date "2020.10.30"]
[Round "5.28"]
[White "Yin, Vito"]
[Black "Deiringer, Julius"]
[Result "0-1"]
[ECO "D35"]
[WhiteElo "1320"]
[BlackElo "1332"]
[Annotator "NA RC"]
[PlyCount "96"]
[EventDate "2020.10.27"]
[EventType "swiss"]
[EventRounds "7"]
[EventCountry "GER"]
[SourceTitle "playchess.com"]
[Source "ChessBase"]
[SourceQuality "1"]
[TimeControl "40/4500+30:900+30"]

1. d4 {[%emt 0:00:00]} d5 {[%emt 0:00:00]} 2. c4 {[%emt 0:00:00]} e6 {[%emt 0:00:06]} 3. Nc3 {[%emt 0:00:00]} Nf6 {[%emt 0:00:12]} 4. a3 {[%emt 0:00:07]} Nc6 {[%emt 0:00:44]} 5. Nf3 {[%emt 0:00:02]} Be7 {[%emt 0:00:33]} 6. Bg5 {[%emt 0:00:36]} O-O {[%emt 0:00:42]} 7. e3 {[%emt 0:01:22]} Nd7 {[%emt 0:05:19]} 8. Bxe7 {[%emt 0:00:45]} Nxe7 {[%emt 0:00:11]} 9. Qc2 {[%emt 0:00:19]} Nf6 {[%emt 0:00:34]} 10. Bd3 {[%emt 0:00:22]} h6 {[%emt 0:01:33]} 11. O-O-O {[%emt 0:01:29]} dxc4 {[%emt 0:00:35]} 12. Bxc4 {[%emt 0:00:10]} Ned5 {[%emt 0:03:38]} 13. Ne2 {[%emt 0:02:06]} Qd6 {[%emt 0:02:54]} 14. Rd2 {[%emt 0:02:21]} Ne7 {[%emt 0:03:49]} 15. g3 {[%emt 0:02:36]} Bd7 {[%emt 0:00:33]} 16. e4 {[%emt 0:01:09]} Ng4 {[%emt 0:02:06]} 17. Nc3 {[%emt 0:02:11]} Rfb8 {[%emt 0:03:09]} 18. h3 {[%emt 0:00:56]} b5 {[%emt 0:02:37]} 19. Bd3 {[%emt 0:03:05]} a5 {[%emt 0:00:44]} 20. e5 {[%emt 0:00:42]} Qb6 {[%emt 0:01:32]} 21. hxg4 {[%emt 0:00:27]} Qb7 {[%emt 0:02:37]} 22. Be2 {[%emt 0:04:50]} b4 {[%emt 0:02:04]} 23. Nb1 {[%emt 0:01:25]} bxa3 {[%emt 0:04:23]} 24. Nxa3 {[%emt 0:00:15]} Bc6 {[%emt 0:01:36]} 25. Rd3 {[%emt 0:03:58]} Be4 {[%emt 0:01:24]} 26. Nc4 {[%emt 0:03:07]} Bxd3 {[%emt 0:01:21]} 27. Qxd3 {[%emt 0:00:11]} Qc6 {[%emt 0:01:32]} 28. g5 {[%emt 0:04:58]} Nd5 {[%emt 0:02:30]} 29. gxh6 {[%emt 0:00:52]} Nb4 {[%emt 0:00:12]} 30. h7+ {[%emt 0:00:26]} Kh8 {[%emt 0:00:17]} 31. Qa3 {[%emt 0:00:37]} Qe4 {[%emt 0:00:55]} 32. Kd2 {[%emt 0:10:34]} Qc2+ {[%emt 0:01:25]} 33. Ke1 {[%emt 0:02:37]} Qc1+ {[%emt 0:00:29]} 34. Bd1 {[%emt 0:00:14]} Nc2+ {[%emt 0:00:10]} 35. Ke2 {[%emt 0:00:58]} Nxa3 {[%emt 0:01:04]} 36. bxa3 {[%emt 0:00:32]} Qxc4+ {[%emt 0:00:16]} 37. Ke1 {[%emt 0:00:20]} Qc3+ {[%emt 0:00:39]} 38. Kf1 {[%emt 0:00:20]} Qd3+ {[%emt 0:01:05]} 39. Kg2 {[%emt 0:00:33]} Qe4 {[%emt 0:01:43]} 40. Rh4 {[%emt 0:00:26]} Qd5 {[%emt 0:02:42]} 41. Kh2 {[%emt 0:15:15]} Rb1 {[%emt 0:16:23]} 42. Be2 {[%emt 0:02:02]} Rb2 {[%emt 0:01:20]} 43. Bd1 {[%emt 0:01:51]} Rxf2+ {[%emt 0:00:41]} 44. Kh3 {[%emt 0:01:10]} Rxf3 45. Kg2 Rd3+ {[%emt 0:01:52]} 46. Bf3 {[%emt 0:01:36]} Qxf3+ {[%emt 0:00:10]} 47. Kh2 {[%emt 0:00:37]} Qxg3+ {[%emt 0:00:14]} 48. Kh1 {[%emt 0:00:09]} Rd1# 0-1

[Event "GER-ch Youth U10 2020"]
[Site "Willingen"]
[Date "2020.10.30"]
[Round "5.29"]
[White "Allen, Phillipp"]
[Black "Peters, Lasse"]
[Result "1-0"]
[ECO "B45"]
[WhiteElo "1250"]
[BlackElo "1223"]
[Annotator "NA RC"]
[PlyCount "49"]
[EventDate "2020.10.27"]
[EventType "swiss"]
[EventRounds "7"]
[EventCountry "GER"]
[SourceTitle "playchess.com"]
[Source "ChessBase"]
[SourceQuality "1"]
[TimeControl "40/4500+30:900+30"]

1. e4 {[%emt 0:00:00]} c5 {[%emt 0:00:00]} 2. Nf3 {[%emt 0:00:00]} Nc6 {[%emt 0:00:00]} 3. d4 {[%emt 0:00:00]} cxd4 {[%emt 0:00:00]} 4. Nxd4 {[%emt 0:00:00]} e6 {[%emt 0:00:12]} 5. Nc3 {[%emt 0:00:09]} Nf6 {[%emt 0:00:14]} 6. Be3 {[%emt 0:00:24]} Bb4 {[%emt 0:00:54]} 7. Bd3 {[%emt 0:00:17]} Ne5 {[%emt 0:01:31]} 8. a3 {[%emt 0:00:18]} Nxd3+ {[%emt 0:07:07]} 9. cxd3 {[%emt 0:01:00]} Be7 {[%emt 0:01:49]} 10. Rc1 {[%emt 0:01:22]} e5 {[%emt 0:01:12]} 11. Nf5 {[%emt 0:00:32]} Bf8 {[%emt 0:02:09]} 12. O-O {[%emt 0:02:31]} d6 {[%emt 0:01:09]} 13. Ng3 {[%emt 0:01:54]} Ng4 {[%emt 0:00:55]} 14. h3 {[%emt 0:01:39]} Nxe3 {[%emt 0:00:42]} 15. fxe3 {[%emt 0:00:18]} Bd7 {[%emt 0:01:17]} 16. Qf3 {[%emt 0:02:21]} Be6 {[%emt 0:01:38]} 17. Nb5 {[%emt 0:02:45]} f6 {[%emt 0:01:40]} 18. Nc7+ {[%emt 0:00:29]} Ke7 {[%emt 0:01:49]} 19. Nf5+ {[%emt 0:02:22]} Kf7 {[%emt 0:02:41]} 20. Nxa8 {[%emt 0:01:26]} Qxa8 {[%emt 0:01:46]} 21. Rc7+ {[%emt 0:00:35]} Kg8 {[%emt 0:03:25]} 22. Nh6+ {[%emt 0:02:26]} gxh6 {[%emt 0:03:04]} 23. Qg3+ {[%emt 0:00:11]} Bg4 {[%emt 0:07:15]} 24. Qxg4+ {[%emt 0:00:44]} Bg7 {[%emt 0:01:38]} 25. Qxg7# {[%emt 0:00:10]} 1-0

[Event "GER-ch Youth U10 2020"]
[Site "Willingen"]
[Date "2020.10.30"]
[Round "6.1"]
[White "Goldmann, David"]
[Black "Besou, Hussain"]
[Result "0-1"]
[ECO "E73"]
[WhiteElo "1644"]
[BlackElo "1825"]
[Annotator "NA RC"]
[PlyCount "68"]
[EventDate "2020.10.27"]
[EventType "swiss"]
[EventRounds "7"]
[EventCountry "GER"]
[SourceTitle "playchess.com"]
[Source "ChessBase"]
[SourceQuality "1"]
[TimeControl "40/4500+30:900+30"]

1. d4 {[%emt 0:00:00]} Nf6 {[%emt 0:00:00]} 2. c4 {[%emt 0:00:00]} g6 {[%emt 0:00:00]} 3. Nc3 {[%emt 0:00:00]} Bg7 {[%emt 0:00:00]} 4. e4 {[%emt 0:00:00]} d6 {[%emt 0:00:00]} 5. Be2 {[%emt 0:00:04]} O-O {[%emt 0:00:00]} 6. Be3 {[%emt 0:00:07]} c5 {[%emt 0:00:33]} 7. d5 {[%emt 0:00:14]} e6 {[%emt 0:00:12]} 8. Qd2 {[%emt 0:01:03] E73: King's Indian: Averbakh Variation without 6...c5.} exd5 {[%emt 0:00:08]} 9. exd5 {[%emt 0:00:28]} Re8 {[%emt 0:00:10]} 10. f3 {[%emt 0:01:19] [#]} a6 $146 {[%emt 0:01:25]} ({Predecessor:} 10... Nbd7 11. Bh6 Bh8 12. O-O-O Ne5 13. g4 a6 14. h4 Bd7 15. Qf4 Qa5 16. Bg5 {½-½ (16) Djian,L (1503)-Zaza,A (1834) Prague 2016}) 11. O-O-O {[%emt 0:02:03]} b5 {[%emt 0:00:30]} 12. cxb5 {[%emt 0:00:19]} axb5 {[%emt 0:00:07]} 13. Bxb5 {[%emt 0:00:18]} Bd7 {[%emt 0:00:06]} 14. Bc4 {[%emt 0:02:17]} Qa5 {[%emt 0:01:40]} 15. Nb1 {[%emt 0:05:38] [#]} (15. Nge2 $17) 15... Qa4 $2 {[%emt 0:00:34]} (15... Qb4 $1 $19 {[%cal Rb4c4] and Black stays clearly on top.} 16. Qxb4 cxb4) 16. Bb3 {[%emt 0:00:24]} Qa6 {[%emt 0:00:08]} 17. Na3 {[%emt 0:00:30]} Ba4 {[%emt 0:00:21]} 18. Bxa4 {[%emt 0:01:32]} Qxa4 {[%emt 0:00:10]} 19. Ne2 {[%emt 0:00:33] [#]} Nxd5 $1 {[%emt 0:00:18]} 20. Qxd5 {[%emt 0:01:46] [#]} Bxb2+ $1 {[%emt 0:00:07]} 21. Kxb2 {[%emt 0:00:29]} Qxa3+ {[%emt 0:00:05]} 22. Kc2 $19 {[%emt 0:00:10]} (22. Ka1 $142 Rxe3 23. Rd2) 22... Rxe3 {[%emt 0:00:12]} 23. Kd2 {[%emt 0:00:40]} Re5 {[%emt 0:00:34]} 24. Qd3 {[%emt 0:00:21]} Qxa2+ {[%emt 0:00:08]} 25. Ke1 {[%emt 0:00:07]} c4 {[%emt 0:01:00]} 26. Qd2 {[%emt 0:00:17]} c3 {[%emt 0:00:04]} 27. Qd3 {[%emt 0:00:23]} c2 {[%emt 0:00:33]} 28. Rc1 {[%emt 0:00:05]} Qb2 {[%emt 0:00:16]} 29. Kf2 {[%emt 0:00:07]} Qb6+ {[%emt 0:01:17]} 30. Kf1 {[%emt 0:01:44]} Ra2 {[%emt 0:00:40]} 31. Qc4 {[%emt 0:00:55]} Qe3 {[%emt 0:02:24]} 32. Qxa2 {[%emt 0:00:54]} Qxe2+ {[%emt 0:00:06]} 33. Kg1 {[%emt 0:00:12]} Rg5 34. g3 Re5 0-1

[Event "GER-ch Youth U10 2020"]
[Site "Willingen"]
[Date "2020.10.30"]
[Round "6.2"]
[White "Aniol, Nico"]
[Black "Neuhoff, Laertes"]
[Result "0-1"]
[ECO "A20"]
[WhiteElo "1417"]
[BlackElo "1655"]
[Annotator "NA RC"]
[PlyCount "60"]
[EventDate "2020.10.27"]
[EventType "swiss"]
[EventRounds "7"]
[EventCountry "GER"]
[SourceTitle "playchess.com"]
[Source "ChessBase"]
[SourceQuality "1"]
[TimeControl "40/4500+30:900+30"]

1. c4 {[%emt 0:00:03]} e5 {[%emt 0:00:00]} 2. g3 {[%emt 0:00:48]} c6 {[%emt 0:00:57]} 3. e4 {[%emt 0:01:41]} Nf6 {[%emt 0:06:28]} 4. Nc3 {[%emt 0:02:54]} Bc5 {[%emt 0:08:14]} 5. Nf3 {[%emt 0:06:18]} Ng4 {[%emt 0:21:11]} 6. d4 {[%emt 0:02:06]} exd4 {[%emt 0:00:53]} 7. Nxd4 {[%emt 0:02:38]} Qf6 {[%emt 0:03:54]} 8. Be3 {[%emt 0:02:14]} Nxe3 {[%emt 0:03:05]} 9. fxe3 {[%emt 0:00:31]} O-O {[%emt 0:01:34]} 10. Bg2 {[%emt 0:01:15]} d6 {[%emt 0:01:56]} 11. Rf1 {[%emt 0:11:35]} Qh6 {[%emt 0:03:58]} 12. Qf3 {[%emt 0:04:33]} Nd7 {[%emt 0:04:21]} 13. Nf5 {[%emt 0:12:34]} Qf6 {[%emt 0:02:44]} 14. Rf2 {[%emt 0:04:00]} Ne5 15. Qe2 {[%emt 0:00:11]} Bxf5 {[%emt 0:01:22]} 16. Rxf5 {[%emt 0:06:30]} Qh6 {[%emt 0:01:17]} 17. Kf2 {[%emt 0:00:38]} Bxe3+ {[%emt 0:01:07]} 18. Kf1 {[%emt 0:00:35]} g6 {[%emt 0:06:50]} 19. Rf6 {[%emt 0:01:26]} Bc5 {[%emt 0:00:20]} 20. h3 {[%emt 0:02:45]} Qg5 {[%emt 0:01:30]} 21. Rf3 {[%emt 0:00:09]} Nxf3 22. Qxf3 {[%emt 0:00:05]} f5 {[%emt 0:00:57]} 23. Ke2 {[%emt 0:01:01]} fxe4 {[%emt 0:00:25]} 24. Qg4 {[%emt 0:01:37]} Qxg4+ {[%emt 0:00:07]} 25. hxg4 {[%emt 0:00:08]} Rf2+ {[%emt 0:00:08]} 26. Kd1 {[%emt 0:00:16]} Rxg2 {[%emt 0:00:08]} 27. Ne2 {[%emt 0:00:16]} Rf8 {[%emt 0:00:11]} 28. Ke1 {[%emt 0:00:20]} Rff2 {[%emt 0:00:26]} 29. b4 {[%emt 0:00:29]} Rxe2+ {[%emt 0:00:06]} 30. Kd1 {[%emt 0:00:20]} Bxb4 {[%emt 0:00:30]} 0-1

[Event "GER-ch Youth U10 2020"]
[Site "Willingen"]
[Date "2020.10.30"]
[Round "6.3"]
[White "Kullmann, Max"]
[Black "Herrmann, Jakob"]
[Result "0-1"]
[ECO "E81"]
[WhiteElo "1375"]
[BlackElo "1504"]
[Annotator "NA RC"]
[PlyCount "64"]
[EventDate "2020.10.27"]
[EventType "swiss"]
[EventRounds "7"]
[EventCountry "GER"]
[SourceTitle "playchess.com"]
[Source "ChessBase"]
[SourceQuality "1"]
[TimeControl "40/4500+30:900+30"]

1. d4 {[%emt 0:00:00]} Nf6 {[%emt 0:00:00]} 2. c4 {[%emt 0:00:00]} g6 {[%emt 0:00:01]} 3. Nc3 {[%emt 0:00:00]} Bg7 {[%emt 0:00:16]} 4. e4 {[%emt 0:00:14]} d6 {[%emt 0:00:20]} 5. f3 {[%emt 0:00:17]} O-O {[%emt 0:01:06]} 6. Be3 {[%emt 0:00:22]} a6 {[%emt 0:01:53]} 7. Qd2 {[%emt 0:00:30]} Nbd7 {[%emt 0:00:13]} 8. g4 {[%emt 0:01:50]} c6 {[%emt 0:00:37]} 9. h4 {[%emt 0:01:22]} b5 {[%emt 0:00:53]} 10. cxb5 {[%emt 0:04:23]} axb5 {[%emt 0:06:08]} 11. h5 {[%emt 0:00:54]} e5 {[%emt 0:16:32]} 12. d5 {[%emt 0:03:57]} b4 {[%emt 0:04:10]} 13. Nce2 {[%emt 0:01:10]} cxd5 {[%emt 0:01:08]} 14. exd5 {[%emt 0:01:07]} Ra5 {[%emt 0:06:15]} 15. Bh6 {[%emt 0:15:18]} Rxd5 {[%emt 0:01:37]} 16. Qc1 {[%emt 0:00:29]} Nc5 {[%emt 0:00:21]} 17. Qe3 {[%emt 0:02:42]} Nd3+ {[%emt 0:00:25]} 18. Kd1 {[%emt 0:00:12]} Nf4+ {[%emt 0:05:34]} 19. Kc2 {[%emt 0:00:52]} Bxh6 {[%emt 0:00:42]} 20. Qb3 {[%emt 0:00:27]} Be6 {[%emt 0:01:37]} 21. Qxb4 {[%emt 0:02:38]} Qc7+ {[%emt 0:02:01]} 22. Nc3 {[%emt 0:00:19]} Rb8 {[%emt 0:00:13]} 23. Qa3 {[%emt 0:01:04]} Ra5 {[%emt 0:00:22]} 24. Qxa5 {[%emt 0:00:42]} Qxa5 {[%emt 0:00:01]} 25. Nge2 {[%emt 0:01:09]} gxh5 {[%emt 0:00:59]} 26. Nxf4 {[%emt 0:00:47]} Bxf4 {[%emt 0:00:09]} 27. gxh5 {[%emt 0:00:11]} Bf5+ {[%emt 0:00:12]} 28. Kd1 {[%emt 0:00:55]} Rxb2 {[%emt 0:00:00]} 29. Rg1+ {[%emt 0:00:17]} Kh8 {[%emt 0:00:00]} 30. Rg2 {[%emt 0:00:19]} Qxc3 {[%emt 0:00:00]} 31. Rxb2 {[%emt 0:00:47]} Qxb2 {[%emt 0:00:00]} 32. Bd3 {[%emt 0:01:05]} Qd2# 0-1